bitfinex-derivatives/quotes_ETHF0:USTF0_20250503
["timestamp","ask_amount","ask_price","bid_price","bid_amount"]
[1746306131411,4.80574,1838.2,1838.1,1.6828]
[1746306131611,5.63174,1838.2,1838.1,1.6828]
[1746306131812,5.63174,1838.2,1838.1,3.2814]
[1746306132119,5.63174,1838.2,1838.1,2.4156]
[1746306132318,6.49354,1838.2,1838.1,2.4156]
[1746306133417,9.70134,1838.2,1838.1,2.4156]
[1746306139323,1.08786,1838.0,1837.9,3.425]
[1746306140124,4.80586,1838.0,1837.9,5.0112]
[1746306146125,6.45416,1838.0,1837.9,5.0112]
[1746306149830,7.32476,1838.0,1837.9,5.0112]
[1746306151126,7.32476,1838.0,1837.9,1.5862]
[1746306151720,6.45416,1838.0,1837.9,1.5862]
[1746306152925,4.80586,1838.0,1837.9,1.5862]
[1746306163636,4.80586,1838.0,1837.9,2.67412]
[1746306164135,1.08786,1838.0,1837.9,1.5862]
[1746306165133,4.80586,1838.0,1837.9,1.5862]
[1746306165340,1.08798,1837.8,1837.7,3.2078]
[1746306165531,1.08798,1837.8,1837.7,5.7613]
[1746306165732,1.08798,1837.8,1837.7,6.5903]
[1746306166139,4.80598,1837.8,1837.7,6.5903]
[1746306166341,4.80598,1837.8,1837.7,7.67834]
[1746306167236,1.08798,1837.8,1837.7,7.67834]
[1746306167440,1.08796,1837.9,1837.8,1.08798]
[1746306167642,1.08796,1837.9,1837.8,2.70348]
[1746306168142,4.80596,1837.9,1837.8,2.70348]
[1746306170751,4.80596,1837.9,1837.8,1.6155]
[1746306171742,6.44486,1837.9,1837.8,1.6155]
[1746306171944,1.0881,1837.6,1837.5,3.2078]
[1746306172238,4.8061,1837.6,1837.5,9.9766]
[1746306173255,4.8061,1837.6,1837.5,20.83185469]
[1746306173256,6.5385,1837.6,1837.5,20.83185469]
[1746306174352,6.5385,1837.6,1837.5,17.62405469]
[1746306177457,6.5385,1837.6,1837.5,6.7688]
[1746306179058,6.5385,1837.6,1837.5,3.425]
[1746306181258,6.5385,1837.6,1837.5,5.1688]
[1746306181861,6.5385,1837.6,1837.5,6.25696]
[1746306183160,4.8061,1837.6,1837.5,6.25696]
[1746306188064,5.6047,1837.6,1837.5,6.25696]
[1746306188865,5.6047,1837.6,1837.5,5.1688]
[1746306189063,7.2748,1837.6,1837.5,5.1688]
[1746306189263,7.2748,1837.6,1837.5,3.425]
[1746306210173,7.2748,1837.6,1837.5,4.265]
[1746306211975,7.2748,1837.6,1837.5,0.84]
[1746306214776,1.08816,1837.5,1837.4,1.5881]
[1746306215074,6.53996,1837.5,1837.4,1.5881]
[1746306237592,1.08822,1837.4,1837.3,12.29268759]
[1746306237792,2.81942,1837.4,1837.3,13.94708759]
[1746306238181,6.53742,1837.4,1837.3,13.94708759]
[1746306238586,7.37772,1837.4,1837.3,10.67848759]
[1746306239497,7.37772,1837.4,1837.3,7.25448759]
[1746306242497,1.08828,1837.3,1837.2,1.6536]
[1746306242696,2.81598,1837.3,1837.2,1.6536]
[1746306243101,6.53398,1837.3,1837.2,1.6536]
[1746306245397,1.08834,1837.2,1837.1,8.94858759]
[1746306245795,3.63134,1837.2,1837.1,8.94858759]
[1746306246196,7.34934,1837.2,1837.1,8.94858759]
[1746306246497,7.34934,1837.2,1837.1,3.4048]
[1746306248200,1.0884,1837.1,1837.0,13.88628759]
[1746306249094,4.8064,1837.1,1837.0,13.88628759]
[1746306249494,4.8064,1837.1,1837.0,17.26308759]
[1746306250508,4.8064,1837.1,1837.0,10.0086]
[1746306250708,6.3981,1837.1,1837.0,6.8008]
[1746306256111,6.3981,1837.1,1837.0,4.2331]
[1746306258714,9.6059,1837.1,1837.0,4.2331]
[1746306259213,5.8879,1837.1,1837.0,4.2331]
[1746306259806,5.8879,1837.1,1837.0,5.8686]
[1746306260213,5.8879,1837.1,1837.0,2.4446]
[1746306260713,1.08845,1837.0,1836.9,0.7912]
[1746306261109,1.08845,1837.0,1836.9,2.4267]
[1746306262118,4.80645,1837.0,1836.9,2.4267]
[1746306263116,1.08845,1837.0,1836.9,2.4267]
[1746306264215,4.80645,1837.0,1836.9,2.4267]
[1746306268121,1.08845,1837.0,1836.9,2.4267]
[1746306275128,4.80645,1837.0,1836.9,2.4267]
[1746306277132,1.08845,1837.0,1836.9,2.4267]
[1746306279127,4.80645,1837.0,1836.9,2.4267]
[1746306281133,1.08845,1837.0,1836.9,2.4267]
[1746306285636,1.90305,1837.0,1836.9,2.4267]
[1746306290448,1.08851,1836.9,1836.8,5.6578]
[1746306290645,2.73151,1836.9,1836.8,8.1421]
[1746306290940,2.73151,1836.9,1836.8,3.2722]
[1746306291540,2.73151,1836.9,1836.8,10.52668759]
[1746306292738,2.73151,1836.9,1836.8,7.25448759]
[1746306292941,6.75081,1836.9,1836.8,7.25448759]
[1746306295145,10.46881,1836.9,1836.8,7.25448759]
[1746306297147,1.08857,1836.8,1836.7,4.4842]
[1746306297349,3.50407,1836.8,1836.7,4.4842]
[1746306297647,3.50407,1836.8,1836.7,3.425]
[1746306305642,3.50407,1836.8,1836.7,5.9268]
[1746306306248,3.50407,1836.8,1836.7,2.5018]
[1746306307738,1.08857,1836.8,1836.7,2.5018]
[1746306308137,1.08857,1836.8,1836.7,6.2198]
[1746306312652,4.28667,1836.8,1836.7,6.2198]
[1746306312845,4.28667,1836.8,1836.7,3.718]
[1746306313245,1.08863,1836.7,1836.6,1.8628]
[1746306313440,1.08863,1836.7,1836.6,3.5257]
[1746306313646,1.08863,1836.7,1836.6,2.4663]
[1746306313848,2.79393,1836.7,1836.6,2.4663]
[1746306314551,1.08863,1836.7,1836.6,2.4663]
[1746306317151,1.08863,1836.7,1836.6,3.55499]
[1746306317747,1.08863,1836.7,1836.6,2.4663]
[1746306319651,1.08863,1836.7,1836.6,3.55499]
[1746306322452,1.08863,1836.7,1836.6,2.4663]
[1746306323546,1.08863,1836.7,1836.6,3.55499]
[1746306325454,1.08862,1836.8,1836.6,3.55499]
[1746306325650,3.62427627,1837.1,1837.0,1.08845]
[1746306326050,3.62427627,1837.1,1837.0,4.40295]
[1746306326251,3.62427627,1837.1,1837.0,8.12095]
[1746306326457,4.71267627,1837.1,1837.0,8.12095]
[1746306326756,3.62427627,1837.1,1837.0,8.12095]
[1746306327154,3.62427627,1837.1,1837.0,11.54595]
[1746306329258,3.62427627,1837.1,1837.0,7.82795]
[1746306330260,3.62427627,1837.1,1837.0,12.82795]
[1746306330460,3.62427627,1837.1,1837.0,16.6789]
[1746306331160,3.62427627,1837.1,1837.0,20.3969]
[1746306331662,3.62427627,1837.1,1837.0,15.3969]
[1746306332052,3.62427627,1837.1,1837.0,11.6789]
[1746306333157,3.62427627,1837.1,1837.0,15.3969]
[1746306334159,3.62427627,1837.1,1837.0,11.6789]
[1746306337160,3.62427627,1837.1,1837.0,15.3969]
[1746306338254,3.62427627,1837.1,1837.0,11.6789]
[1746306341267,1.6412,1837.3,1837.2,1.08834]
[1746306342265,5.3592,1837.3,1837.2,1.08834]
[1746306343158,1.6412,1837.3,1837.2,1.08834]
[1746306343861,2.4553,1837.3,1837.2,1.08834]
[1746306345465,3.54358,1837.3,1837.2,1.08834]
[1746306345860,1.08836,1837.2,1837.1,1.08836]
[1746306346060,2.5446,1837.2,1837.1,1.08836]
[1746306346256,7.35094,1837.2,1837.1,1.08836]
[1746306350271,2.5446,1837.2,1837.0,7.27595]
[1746306350569,2.7914,1837.1,1837.0,3.425]
[1746306351069,6.5094,1837.1,1837.0,3.425]
[1746306351280,1.08851,1836.9,1836.8,4.29635]
[1746306351470,1.08851,1836.9,1836.8,3.2078]
[1746306351867,1.08857,1836.8,1836.7,11.76709759]
[1746306352468,2.79157,1836.8,1836.7,11.76709759]
[1746306352672,2.79157,1836.8,1836.7,10.67848759]
[1746306353476,2.79157,1836.8,1836.7,7.25448759]
[1746306354877,2.79157,1836.8,1836.7,8.34311759]
[1746306355280,2.79157,1836.8,1836.7,7.25448759]
[1746306356276,1.08863,1836.7,1836.6,4.9396]
[1746306356577,3.63693,1836.7,1836.6,4.9396]
[1746306356980,2.5483,1836.7,1836.6,1.08865]
[1746306357781,2.5483,1836.7,1836.5,7.2355]
[1746306357988,2.5103,1836.6,1836.5,8.32423]
[1746306359086,3.59899,1836.6,1836.5,8.32423]
[1746306362091,3.59899,1836.6,1836.5,12.04223]
[1746306362793,2.5103,1836.6,1836.5,13.77623]
[1746306363093,1.7055,1836.6,1836.5,13.77623]
[1746306363390,1.7055,1836.6,1836.5,14.63083]
[1746306365293,2.79419,1836.6,1836.5,14.63083]
[1746306367991,1.7055,1836.6,1836.5,14.63083]
[1746306371582,1.93148,1836.7,1836.6,1.08869]
[1746306371785,3.56118,1836.7,1836.6,3.56579]
[1746306373081,1.6297,1836.7,1836.6,3.56579]
[1746306373580,2.71833,1836.7,1836.6,3.56579]
[1746306375597,4.29642,1836.8,1836.7,1.08863]
[1746306375792,4.29642,1836.8,1836.7,2.83423]
[1746306376096,4.29642,1836.8,1836.7,6.55223]
[1746306377397,0.7895,1837.0,1836.8,2.72137]
[1746306377398,3.2078,1837.0,1836.8,2.72137]
[1746306377598,1.0884,1837.1,1837.0,1.0884]
[1746306378090,1.0884,1837.1,1837.0,4.8064]
[1746306378488,2.74808,1837.2,1837.1,1.0884]
[1746306378687,3.62427627,1837.3,1837.2,1.08834]
[1746306378897,3.62427627,1837.3,1837.2,4.51334]
[1746306379296,3.62427627,1837.3,1837.2,5.34514]
[1746306379797,3.62427627,1837.3,1837.2,6.20054]
[1746306381899,5.95574,1837.4,1837.3,1.08828]
[1746306383696,1.6597,1837.4,1837.3,1.08828]
[1746306383898,1.08821,1837.5,1837.4,1.08822]
[1746306384397,2.75301,1837.5,1837.4,1.08822]
[1746306384896,1.6648,1837.5,1837.4,1.08822]
[1746306385199,15.34799065,1837.7,1837.4,4.80617]
[1746306385503,1.08816,1837.5,1837.4,4.80617]
[1746306385800,1.08816,1837.5,1837.4,3.718]
[1746306385999,2.75296,1837.5,1837.4,3.718]
[1746306386501,1.08828,1837.3,1837.2,6.20051]
[1746306386693,1.08828,1837.3,1837.2,4.51331]
[1746306386895,1.08839,1837.2,1837.1,3.425]
[1746306387094,1.87699,1837.2,1837.1,3.425]
[1746306387299,5.08479,1837.2,1837.1,3.425]
[1746306387504,5.08479,1837.2,1837.1,7.2353]
[1746306387694,5.08479,1837.2,1837.1,3.8103]
[1746306390092,8.80279,1837.2,1837.1,3.8103]
[1746306391407,5.08479,1837.2,1837.1,3.8103]
[1746306392207,8.80279,1837.2,1837.1,3.8103]
[1746306393308,5.08479,1837.2,1837.1,3.8103]
[1746306406316,5.08479,1837.2,1837.1,5.5109]
[1746306415321,1.87699,1837.2,1837.1,5.5109]
[1746306415517,5.08479,1837.2,1837.1,5.5109]
[1746306419522,5.08479,1837.2,1837.1,3.8103]
[1746306419910,6.70959,1837.2,1837.1,3.8103]
[1746306420114,6.70959,1837.2,1837.1,5.4704]
[1746306420310,1.08845,1837.0,1836.9,0.8529]
[1746306420522,4.29625,1837.0,1836.9,0.8529]
[1746306421216,4.29625,1837.0,1836.9,4.5709]
[1746306423320,4.29625,1837.0,1836.9,0.8529]
[1746306424725,1.08845,1837.0,1836.9,0.8529]
[1746306425124,4.29625,1837.0,1836.9,0.8529]
[1746306426726,5.98095,1837.0,1836.9,0.8529]
[1746306428429,6.77895,1837.0,1836.9,0.8529]
[1746306430530,3.57115,1837.0,1836.9,0.8529]
[1746306430833,6.77895,1837.0,1836.9,0.8529]
[1746306431732,1.08851,1836.9,1836.8,1.6601]
[1746306431927,2.70421,1836.9,1836.8,1.6601]
[1746306436143,6.32848627,1836.9,1836.8,1.6601]
[1746306440445,2.70421,1836.9,1836.8,1.6601]
[1746306441146,2.70421,1836.9,1836.8,5.3781]
[1746306442150,2.70421,1836.9,1836.8,1.6601]
[1746306447861,5.91201,1836.9,1836.8,1.6601]
[1746306448960,2.70421,1836.9,1836.8,1.6601]
[1746306449162,5.91201,1836.9,1836.8,1.6601]
[1746306456666,2.70421,1836.9,1836.8,1.6601]
[1746306456866,5.91201,1836.9,1836.8,1.6601]
[1746306460964,2.70421,1836.9,1836.8,1.6601]
[1746306461169,5.91201,1836.9,1836.8,1.6601]
[1746306469178,2.70421,1836.9,1836.8,1.6601]
[1746306469380,5.91201,1836.9,1836.8,1.6601]
[1746306469673,4.71276627,1837.0,1836.8,2.74863]
[1746306469878,1.08851,1836.9,1836.8,1.6601]
[1746306470067,1.08851,1836.9,1836.8,3.718]
[1746306472682,1.08851,1836.9,1836.8,4.80657]
[1746306473179,1.08851,1836.9,1836.8,3.718]
[1746306473782,1.0885,1837.0,1836.8,4.80656]
[1746306474076,6.83207627,1837.1,1836.8,3.718]
[1746306474280,7.92048627,1837.1,1836.9,1.08845]
[1746306474480,7.92048627,1837.1,1837.0,0.84]
[1746306475577,7.92048627,1837.1,1837.0,1.92845]
[1746306476283,4.29621,1837.1,1837.0,1.92845]
[1746306477483,4.29621,1837.1,1837.0,0.84]
[1746306478181,1.08841,1837.1,1837.0,0.84]
[1746306478883,1.08841,1837.1,1837.0,1.92845]
[1746306480286,1.08841,1837.1,1837.0,0.84]
[1746306481286,1.08841,1837.1,1837.0,1.92845]
[1746306481591,5.98918,1837.2,1837.0,1.92845]
[1746306483589,5.98918,1837.2,1837.1,1.0884]
[1746306483791,5.98918,1837.2,1837.1,2.7426]
[1746306485387,5.98918,1837.2,1837.1,1.6542]
[1746306486891,5.98918,1837.2,1837.1,2.7426]
[1746306487089,5.98918,1837.2,1837.1,1.6542]
[1746306491195,9.70718,1837.2,1837.1,1.6542]
[1746306491787,8.6188,1837.2,1836.9,3.425]
[1746306492097,1.08845,1837.0,1836.9,3.425]
[1746306492395,1.08845,1837.0,1836.9,5.1449]
[1746306492588,2.73035,1837.0,1836.9,5.1449]
[1746306494486,1.08851,1836.9,1836.8,1.65]
[1746306494690,3.52071,1836.9,1836.8,5.075]
[1746306494995,3.52071,1836.9,1836.8,4.2187]
[1746306496099,3.52071,1836.9,1836.8,7.9367]
[1746306496602,3.52071,1836.9,1836.8,7.143]
[1746306496897,3.52071,1836.9,1836.8,10.9539]
[1746306497297,3.52071,1836.9,1836.8,7.2359]
[1746306501307,3.52071,1836.9,1836.8,10.9539]
[1746306501810,3.52071,1836.9,1836.8,12.5814]
[1746306502006,4.0169,1837.1,1836.8,12.5814]
[1746306502207,1.08847,1837.0,1836.9,1.08847]
[1746306502407,1.08847,1837.0,1836.9,4.49587]
[1746306503107,1.08847,1837.0,1836.9,8.21387]
[1746306505211,6.4176,1837.1,1836.9,8.21387]
[1746306505411,7.506,1837.1,1837.0,1.6722]
[1746306507508,4.2982,1837.1,1837.0,1.6722]
[1746306507711,7.506,1837.1,1837.0,1.6722]
[1746306508412,4.2982,1837.1,1837.0,1.6722]
[1746306508712,7.506,1837.1,1837.0,1.6722]
[1746306510113,6.6824,1837.1,1837.0,1.6722]
[1746306510412,5.8733,1837.1,1837.0,1.6722]
[1746306513213,5.8733,1837.1,1837.0,5.4827]
[1746306514315,2.6655,1837.1,1837.0,5.4827]
[1746306514517,5.8733,1837.1,1837.0,5.4827]
[1746306516112,5.8733,1837.1,1837.0,3.8105]
[1746306520119,9.5913,1837.1,1837.0,3.8105]
[1746306521323,5.8733,1837.1,1837.0,3.8105]
[1746306530422,2.6655,1837.1,1837.0,3.8105]
[1746306530624,5.8733,1837.1,1837.0,3.8105]
[1746306532924,9.49757627,1837.1,1837.0,3.8105]
[1746306535425,6.28977627,1837.1,1837.0,3.8105]
[1746306535622,9.49757627,1837.1,1837.0,3.8105]
[1746306544230,9.49757627,1837.1,1837.0,5.4385]
[1746306548136,13.21557627,1837.1,1837.0,5.4385]
[1746306548326,10.00777627,1837.1,1837.0,5.4385]
[1746306548730,13.21557627,1837.1,1837.0,3.8105]
[1746306549732,11.63847627,1837.1,1837.0,3.8105]
[1746306550032,11.63847627,1837.1,1837.0,5.5384]
[1746306550331,7.92047627,1837.1,1837.0,9.2564]
[1746306551233,7.92047627,1837.1,1837.0,5.5384]
[1746306552335,8.61460565,1837.1,1837.0,5.5384]
[1746306553236,8.61460565,1837.1,1837.0,9.2564]
[1746306555138,8.61460565,1837.1,1837.0,5.5384]
[1746306555733,10.23610565,1837.1,1837.0,5.5384]
[1746306555932,10.23610565,1837.1,1837.0,3.8105]
[1746306557138,13.95410565,1837.1,1837.0,3.8105]
[1746306558138,10.23610565,1837.1,1837.0,3.8105]
[1746306559139,13.95410565,1837.1,1837.0,3.8105]
[1746306560140,10.23610565,1837.1,1837.0,3.8105]
[1746306560340,10.23610565,1837.1,1837.0,5.4048]
[1746306561339,12.06238525,1837.1,1837.0,3.8105]
[1746306573346,10.44088525,1837.1,1837.0,6.4111]
[1746306574250,10.44088525,1837.1,1837.0,10.1291]
[1746306574749,6.14468525,1837.1,1837.0,15.1291]
[1746306574946,6.14468525,1837.1,1837.0,16.21755]
[1746306575152,4.83488525,1837.1,1837.0,16.21755]
[1746306578252,1.08828,1837.3,1837.2,1.08834]
[1746306578447,1.08828,1837.3,1837.2,7.72014]
[1746306578648,1.08828,1837.3,1837.2,12.72014]
[1746306578848,1.08828,1837.3,1837.2,13.53194]
[1746306579149,1.08828,1837.3,1837.2,12.24994]
[1746306582147,1.08828,1837.3,1837.2,13.93734]
[1746306583550,1.0882,1837.5,1837.3,1.08826]
[1746306583751,1.0882,1837.5,1837.4,1.6874]
[1746306585553,2.6932,1837.5,1837.4,1.6874]
[1746306585755,3.5169,1837.5,1837.4,1.6874]
[1746306586153,7.2349,1837.5,1837.4,1.6874]
[1746306589258,7.2349,1837.5,1837.4,5.4971]
[1746306591157,3.5169,1837.5,1837.4,5.4971]
[1746306598252,7.2349,1837.5,1837.4,5.4971]
[1746306599256,3.5169,1837.5,1837.4,5.4971]
[1746306600260,7.2349,1837.5,1837.4,5.4971]
[1746306601961,6.4112,1837.5,1837.4,5.4971]
[1746306602157,2.6932,1837.5,1837.4,5.4971]
[1746306603762,2.6932,1837.5,1837.4,3.8097]
[1746306612271,2.6932,1837.5,1837.4,5.4971]
[1746306619274,5.901,1837.5,1837.4,5.4971]
[1746306621581,2.6932,1837.5,1837.4,5.4971]
[1746306621881,5.901,1837.5,1837.4,5.4971]
[1746306630191,2.6932,1837.5,1837.4,5.4971]
[1746306630386,5.901,1837.5,1837.4,5.4971]
[1746306642603,2.6932,1837.5,1837.4,5.4971]
[1746306642902,5.901,1837.5,1837.4,5.4971]
[1746306643097,2.6932,1837.5,1837.4,5.4971]
[1746306643402,5.901,1837.5,1837.4,5.4971]
[1746306645601,2.6932,1837.5,1837.4,5.4971]
[1746306645803,5.901,1837.5,1837.4,5.4971]
[1746306646404,2.6932,1837.5,1837.4,5.4971]
[1746306646603,5.901,1837.5,1837.4,5.4971]
[1746306650305,2.6932,1837.5,1837.4,5.4971]
[1746306650505,5.901,1837.5,1837.4,5.4971]
[1746306651204,2.6932,1837.5,1837.4,5.4971]
[1746306651400,5.901,1837.5,1837.4,5.4971]
[1746306652608,2.6932,1837.5,1837.4,5.4971]
[1746306652808,5.901,1837.5,1837.4,5.4971]
[1746306653008,4.296,1837.5,1837.4,5.4971]
[1746306656114,9.6764,1837.5,1837.4,3.8097]
[1746306657612,6.4686,1837.5,1837.4,3.8097]
[1746306657813,9.6764,1837.5,1837.4,5.3868]
[1746306659213,5.9584,1837.5,1837.4,5.3868]
[1746306660314,9.6764,1837.5,1837.4,5.3868]
[1746306662114,5.9584,1837.5,1837.4,5.3868]
[1746306662413,2.7506,1837.5,1837.4,5.3868]
[1746306662616,5.9584,1837.5,1837.4,5.3868]
[1746306663114,9.6764,1837.5,1837.4,5.3868]
[1746306665218,2.7506,1837.5,1837.4,5.3868]
[1746306665520,5.9584,1837.5,1837.4,5.3868]
[1746306669317,9.6764,1837.5,1837.4,5.3868]
[1746306670118,5.9584,1837.5,1837.4,5.3868]
[1746306671718,2.7506,1837.5,1837.4,5.3868]
[1746306684124,6.4686,1837.5,1837.4,5.3868]
[1746306685127,2.7506,1837.5,1837.4,5.3868]
[1746306686127,6.4686,1837.5,1837.4,5.3868]
[1746306687228,2.7506,1837.5,1837.4,5.3868]
[1746306694132,6.4686,1837.5,1837.4,5.3868]
[1746306696232,2.7506,1837.5,1837.4,5.3868]
[1746306697441,2.7506,1837.5,1837.4,6.47502]
[1746306697732,2.7506,1837.5,1837.4,5.3868]
[1746306699534,2.7506,1837.5,1837.4,6.47502]
[1746306702938,1.0882,1837.5,1837.4,6.47502]
[1746306703636,11.20765567,1837.6,1837.5,1.08816]
[1746306703837,11.20765567,1837.6,1837.5,3.63056]
[1746306704239,14.92565567,1837.6,1837.5,3.63056]
[1746306707137,14.92565567,1837.6,1837.5,1.7253]
[1746306707344,1.08816,1837.5,1837.4,1.08818]
[1746306707540,1.5797,1837.5,1837.4,2.69878]
[1746306709640,2.66786,1837.5,1837.4,2.69878]
[1746306716555,2.66786,1837.5,1837.4,6.50848]
[1746306722354,1.5797,1837.5,1837.4,6.50848]
[1746306723350,2.66786,1837.5,1837.4,6.50848]
[1746306723755,1.5797,1837.5,1837.4,6.50848]
[1746306724656,2.66786,1837.5,1837.4,6.50848]
[1746306725955,1.5797,1837.5,1837.4,6.50848]
[1746306727454,4.49221567,1837.6,1837.5,1.08816]
[1746306727656,3.63741567,1837.6,1837.5,6.82336]
[1746306727956,3.63741567,1837.6,1837.5,7.64326]
[1746306728155,3.63741567,1837.6,1837.5,11.80488526]
[1746306728852,15.01007169,1838.0,1837.5,22.59997291]
[1746306728853,5.27187169,1838.0,1837.5,22.59997291]
[1746306729159,12.71504037,1838.4,1838.3,1.08768]
[1746306729359,12.71504037,1838.4,1838.3,7.71448]
[1746306730164,12.71504037,1838.4,1838.3,11.43248]
[1746306732453,12.71504037,1838.4,1838.3,13.08638]
[1746306733862,12.71504037,1838.4,1838.3,20.3713004]
[1746306734064,1.6322,1838.6,1838.5,1.08757]
[1746306738365,2.71971,1838.6,1838.5,1.08757]
[1746306738561,1.6322,1838.6,1838.5,1.08757]
[1746306739564,2.71971,1838.6,1838.5,1.08757]
[1746306740061,2.71971,1838.6,1838.5,1.91107]
[1746306751271,1.08763,1838.4,1838.3,6.6268]
[1746306751570,1.08763,1838.4,1838.3,7.71448]
[1746306751969,2.66453,1838.4,1838.3,7.71448]
[1746306753271,2.66453,1838.4,1838.3,11.43248]
[1746306760074,2.66453,1838.4,1838.3,7.71448]
[1746306764568,2.66453,1838.4,1838.3,4.50668]
[1746306764767,2.66453,1838.4,1838.3,7.71448]
[1746306765274,2.66453,1838.4,1838.3,11.43248]
[1746306767478,2.66453,1838.4,1838.3,8.22468]
[1746306767777,2.66453,1838.4,1838.3,11.43248]
[1746306768380,2.66453,1838.4,1838.3,8.22468]
[1746306768582,2.66453,1838.4,1838.3,13.11868]
[1746306770082,2.66453,1838.4,1838.3,9.91088]
[1746306770380,2.66453,1838.4,1838.3,13.11868]
[1746306773082,2.66453,1838.4,1838.3,9.40068]
[1746306775077,2.66453,1838.4,1838.3,13.11868]
[1746306775283,2.66453,1838.4,1838.3,20.4036004]
[1746306776490,2.66453,1838.4,1838.3,17.1958004]
[1746306776687,2.66453,1838.4,1838.3,20.4036004]
[1746306776985,3.2078,1838.8,1838.7,1.08745]
[1746306777186,2.38488407,1838.8,1838.7,7.72325]
[1746306777584,2.38488407,1838.8,1838.7,9.35985]
[1746306778282,1.08733,1838.9,1838.8,1.08734]
[1746306778480,2.69983,1838.9,1838.8,1.89434]
[1746306778688,1.6125,1838.9,1838.8,1.89434]
[1746306779081,1.6125,1838.9,1838.8,5.61234]
[1746306780278,1.6125,1838.9,1838.8,10.82074]
[1746306780886,2.69983,1838.9,1838.8,10.82074]
[1746306782088,2.69983,1838.9,1838.8,7.3305]
[1746306782283,3.55313,1838.9,1838.8,7.3305]
[1746306782690,3.55313,1838.9,1838.8,26.68260591]
[1746306783292,3.55313,1838.9,1838.8,22.96460591]
[1746306784581,3.55313,1838.9,1838.8,24.05199591]
[1746306785693,3.55313,1838.9,1838.8,4.69989]
[1746306793388,1.6125,1838.9,1838.8,4.69989]
[1746306793588,1.6125,1838.9,1838.8,6.43349]
[1746306794000,2.69983,1838.9,1838.8,6.43349]
[1746306794189,2.69983,1838.9,1838.8,10.15149]
[1746306794595,1.6125,1838.9,1838.8,10.15149]
[1746306796998,1.6125,1838.9,1838.8,17.40862394]
[1746306799399,1.6125,1838.9,1838.8,18.26482394]
[1746306800297,2.69983,1838.9,1838.8,18.26482394]
[1746306816608,2.69983,1838.9,1838.8,17.17743394]
[1746306818108,2.69983,1838.9,1838.8,25.61686565]
[1746306818609,2.69983,1838.9,1838.8,26.70425565]
[1746306822702,2.69983,1838.9,1838.8,30.33649118]
[1746306825098,2.69983,1838.9,1838.8,26.65930118]
[1746306825410,2.69983,1838.9,1838.8,31.16869118]
[1746306825610,2.69983,1838.9,1838.8,31.99439118]
[1746306826205,2.69983,1838.9,1838.8,30.90700118]
[1746306826406,2.69983,1838.9,1838.8,20.01763171]
[1746306827811,2.69983,1838.9,1838.8,21.10502171]
[1746306828011,2.69983,1838.9,1838.8,20.01763171]
[1746306828511,2.69983,1838.9,1838.8,21.10502171]
[1746306831109,2.69983,1838.9,1838.8,15.76993171]
[1746306831409,10.90763,1838.9,1838.8,1.97018171]
[1746306831706,10.90763,1838.9,1838.8,0.66178171]
[1746306832113,14.62563,1838.9,1838.8,0.66178171]
[1746306835811,1.08739,1838.8,1838.7,15.80164198]
[1746306836113,4.46629,1838.8,1838.7,1.2958]
[1746306837413,7.67409,1838.8,1838.7,1.2958]
[1746306838417,1.08751,1838.6,1838.5,7.26743854]
[1746306839414,1.91491,1838.6,1838.5,7.26743854]
[1746306840113,1.08757,1838.5,1838.4,1.08761]
[1746306840414,3.2078,1838.6,1838.5,1.08757]
[1746306840610,4.9365,1838.6,1838.5,2.73087]
[1746306840811,6.02401,1838.6,1838.5,2.73087]
[1746306841116,6.02401,1838.6,1838.5,6.44887]
[1746306841517,2.81621,1838.6,1838.5,6.44887]
[1746306841923,1.7287,1838.6,1838.5,6.44887]
[1746306842115,2.81621,1838.6,1838.5,6.44887]
[1746306842312,2.81621,1838.6,1838.5,2.73087]
[1746306842510,1.7287,1838.6,1838.5,2.73087]
[1746306844221,5.12272,1838.8,1838.5,1.6433]
[1746306844415,1.6088,1838.7,1838.6,2.5145]
[1746306844616,2.69625,1838.7,1838.6,3.60198]
[1746306845220,1.6088,1838.7,1838.6,3.60198]
[1746306846317,2.69625,1838.7,1838.6,3.60198]
[1746306846517,2.69625,1838.7,1838.6,2.5145]
[1746306846718,2.69625,1838.7,1838.6,3.60201]
[1746306846923,2.69625,1838.7,1838.6,2.5145]
[1746306848123,1.6088,1838.7,1838.6,3.60201]
[1746306848524,2.69625,1838.7,1838.6,3.60201]
[1746306848920,1.6088,1838.7,1838.6,3.60201]
[1746306849125,2.69625,1838.7,1838.6,3.60201]
[1746306850224,1.6088,1838.7,1838.6,3.60201]
[1746306850526,2.69625,1838.7,1838.6,0.8581]
[1746306850924,2.69625,1838.7,1838.6,1.94561]
[1746306851627,1.6088,1838.7,1838.6,1.94561]
[1746306851828,3.2078,1838.8,1838.7,1.08745]
[1746306852122,1.08738,1838.9,1838.8,1.08739]
[1746306852426,1.08738,1838.9,1838.8,1.95089]
[1746306852824,1.08733,1838.9,1838.8,1.95084]
[1746306853015,1.08733,1838.9,1838.8,3.53964]
[1746306853528,1.6201,1839.0,1838.9,1.08733]
[1746306854129,1.6201,1839.0,1838.9,4.80533]
[1746306855129,2.70737,1839.0,1838.9,4.80533]
[1746306855423,2.70737,1839.0,1838.9,7.136]
[1746306855618,3.55397,1839.0,1838.9,7.136]
[1746306856131,3.55397,1839.0,1838.9,3.418]
[1746306856430,1.6201,1839.0,1838.9,4.50533]
[1746306856630,1.6201,1839.0,1838.9,6.17623]
[1746306857129,1.6201,1839.0,1838.9,9.89423]
[1746306857327,2.70737,1839.0,1838.9,3.718]
[1746306857533,8.52847,1839.0,1838.9,3.718]